Cogmind - Beta 13 X1 @@@ ROGUE MODE // 2023.09.24 @ 18:14:28 Player: Decinym Result: Destroyed by 9U-NJN(R) with Subdweller Laser Performance ------------- Evolutions (0) 0 Regions Visited (3) 600 Robots Destroyed (33) 165 Value Destroyed (932) 932 Prototype IDs (1) 20 Alien Tech Used (0) 0 Bonus (0) 0 TOTAL SCORE: 1717 Bonus ------- None Cogmind --------- Core Integrity 0/250 Matter 269/300 Energy 280/280 System Corruption 0% Temperature Cool (30) Movement Treading (160) Location -10/Subcaves Parts ------- > --- POWER (1) -------- Heavy Ion Engine > --- PROPULSION (2) --- Light Treads Light Treads > --- UTILITY (2) ------ Scrap Shield > --- WEAPON (2) ------- Subdweller Beam Cannon Subdweller Machine Gun > --- INVENTORY (5) ---- Medium Storage Unit Gun Armor Subdweller Machine Gun Heavy Battle Rifle Makeshift Sword Peak State ------------ > --- POWER ------------ Heavy Ion Engine > --- PROPULSION ------- Light Treads Light Treads > --- UTILITY ---------- Improved Heat Sink Medium Storage Unit > --- WEAPON ----------- Subdweller Laser Heavy Battle Rifle > --- INVENTORY -------- Heavy Ion Engine Heavy Ion Engine Wheel Beam Rifle Light Assault Rifle Piercing Trap [Rating: 16] Favorites ----------- Power Heavy Ion Engine Engine Heavy Ion Engine Propulsion Light Treads Treads Light Treads Leg Aluminum Leg Wheel Wheel Utility Improved Heat Sink Device Improved Heat Sink Storage Medium Storage Unit Protection Scrap Shield Weapon Beam Rifle Energy Gun Beam Rifle Energy Cannon Subdweller Beam Cannon Ballistic Gun Heavy Battle Rifle Launcher Rocket Launcher Slashing Weapon Makeshift Sword Build | -11 -10 -10 -10 ------- Run | Jun Mat Min Sub Slots Evolved . | . . . . Power . | . . . . Propulsion . | . . . . Utility . | . . . . Weapon . | . . . . Parts Attached 33 | . 6 5 22 Power 4 | . 1 1 2 Engine 4 | . 1 1 2 Core . | . . . . Reactor . | . . . . Propulsion 6 | . 1 2 3 Treads 3 | . . 1 2 Leg 1 | . 1 . . Wheel 2 | . . 1 1 Hover . | . . . . Flight . | . . . . Utility 3 | . 2 . 1 Device 1 | . 1 . . Storage 1 | . 1 . . Processor . | . . . . Hackware . | . . . . Protection 1 | . . . 1 Artifact . | . . . . Weapon 20 | . 2 2 16 Energy Gun 6 | . 2 . 4 Energy Cannon 1 | . . . 1 Ballistic Gun 10 | . . . 10 Ballistic Cannon . | . . . . Launcher 2 | . . 2 . Special Weapon . | . . . . Impact Weapon . | . . . . Slashing Weapon 1 | . . . 1 Piercing Weapon . | . . . . Special Melee Weapon . | . . . . Unidentified Prototypes 1 | . 1 . . Parts Lost 7 | . . 5 2 Power 1 | . . . 1 Propulsion 3 | . . 2 1 Utility . | . . . . Weapon 3 | . . 3 . Highest Loss Streak 5 | . . 5 1 To Critical Strikes . | . . . . Average Slot Usage (%) 92 | . 99 98 87 Engine 13 | . 14 14 13 Treads 14 | . . . 26 Leg 12 | . 28 26 . Device 7 | . 13 14 2 Storage 7 | . 14 14 2 Protection 6 | . . . 11 Energy Gun 15 | . 28 26 4 Ballistic Gun 11 | . . . 22 Naked Turns . | . . . . Heaviest Build 38 | 14 25 25 38 Greatest Support 40 | 20 20 20 40 Greatest Overweight (x) 3 | . 1 2 3 Average Overweight (x) . | . . 1 . Largest Inventory Capacity 10 | . 10 10 10 Average Capacity 7 | . 9 10 5 Most Carried 8 | . 8 8 6 Average Carried 6 | . 7 7 4 Final Capacity 10 | 8 10 10 5 Final Carried 8 | 6 8 5 5 Class Distribution -------------------- 99% | Mutant Dominant Class ---------------- Mutant | -10/Materials Mutant | -10/Mines Mutant | -10/Subcaves Resources | -11 -10 -10 -10 ----------- Run | Jun Mat Min Sub Matter Collected 878 | 200 60 3 615 Remotely . | . . . . Salvage Created 1363 | . 531 118 714 Parts 78 | . 27 10 41 Haulers Intercepted 1 | . 1 . . Recyclers Shooed . | . . . . Parts Field Recycled . | . . . . Retrieved Matter . | . . . . Parts Self-Destructed 4 | . . . 4 Prevented . | . . . . Kills | -11 -10 -10 -10 ------- Run | Jun Mat Min Sub Combat Hostiles Destroyed 26 | . 11 1 14 Guns 24 | . 9 1 14 Classes Destroyed 13 | . 5 4 4 Worker 3 | . 2 1 . Builder 1 | . . 1 . Tunneler 1 | . . 1 . Hauler 1 | . 1 . . Recycler 1 | . . 1 . Watcher 1 | . 1 . . Swarmer 3 | . 3 . . Grunt 8 | . 8 . . Sentry 1 | . . . 1 Artisan 2 | . . . 2 Cobbler 1 | . . . 1 Subdweller 13 | . . . 13 Assembled 1 | . . 1 . Best Kill Streak 4 | . 4 3 3 Combat Bots Only 4 | . 4 1 3 Max Kills in Single Turn 1 | . 1 1 1 Gunslinging . | . . . . Exploded . | . . . . Melee . | . . . . Uniques/NPCs Destroyed . | . . . . Combat | -11 -10 -10 -10 -------- Run | Jun Mat Min Sub Damage Taken 2322 | . 399 692 1231 Core 269 | . 68 79 122 Absorbed by Shields . | . . . . Core Remaining (%) 100 | 100 . . . Volleys Fired 146 | . 46 9 91 Largest 2 | . 2 2 2 Hottest 116 | . 112 112 116 Shots Fired 288 | . 92 18 178 Gun 279 | . 92 14 173 Cannon 5 | . . . 5 Launcher 4 | . . 4 . Special . | . . . . Kinetic 154 | . . . 154 Thermal 130 | . 92 14 24 Explosive 4 | . . 4 . Electromagnetic . | . . . . Robot Hit Streak 18 | . 12 4 18 Robot Miss Streak 4 | . 3 1 4 Penetration Max . | . . . . Secondary Targets 1 | . 1 . . Max Gunslinging Chain 1 | . 1 . . Shots Hit Robots 159 | . 58 12 89 Core Hits 59 | . 19 14 26 Critical Kills . | . . . . Critical Parts Destroyed . | . . . . Critical Strikes 7 | . 3 1 3 Burn 6 | . 3 1 2 Destroy 1 | . . . 1 Melee Attacks 2 | . . . 2 Impact . | . . . . Slashing 2 | . . . 2 Piercing . | . . . . Sneak Attacks 1 | . . . 1 Combat Hostiles . | . . . . Follow-up Attacks . | . . . . Damage Inflicted 3010 | . 836 302 1872 Guns 2679 | . 834 131 1714 Cannons 54 | . . . 54 Explosions 128 | . . 128 . Melee 104 | . . . 104 Ramming 45 | . 2 43 . Kinetic 1604 | . . . 1604 Thermal 1129 | . 834 131 164 Explosive 128 | . . 128 . Electromagnetic . | . . . . Impact . | . . . . Slashing 104 | . . . 104 Piercing . | . . . . Highest Corruption . | . . . . Average Corruption . | . . . . Corruption Purged . | . . . . Corruption Blocked . | . . . . Overload Shots . | . . . . Overflow Damage 8 | . . . 8 Projectiles . | . . . . Explosions . | . . . . Melee 8 | . . . 8 Knockbacks . | . . . . Impact . | . . . . Kinetic . | . . . . Secondary . | . . . . Self-Inflicted Damage 8 | . . 8 . Shots . | . . . . Rammed 3 | . . 3 . Targets Rammed 9 | . 1 8 . Kicked 6 | . 1 5 . Crushed . | . . . . Highest Temperature 162 | . 162 59 24 Average Temperature 34 | . 38 16 9 Received Heat Transfer 538 | . 192 100 246 Siege Activations . | . . . . Robots Corrupted . | . . . . Combat Hostiles . | . . . . Parts Fried . | . . . . Impact Corruptions . | . . . . Robots Melted 3 | . 3 . . Combat Hostiles 2 | . 2 . . Parts Melted 8 | . 6 1 1 Heat Transferred 3355 | . 2479 407 469 Parts Sabotaged . | . . . . Parts Stolen . | . . . . Parts Stripped . | . . . . Power Chain Reactions . | . . . . Missiles Intercepted . | . . . . Alert | -11 -10 -10 -10 ------- Run | Jun Mat Min Sub Peak Influence 321 | . 321 20 . Initial 1 | . . 1 . Average 73 | . 127 2 . Maximum Alert Level 1 | . 1 . . Low Security (%) 89 | . 81 100 . Level 1 10 | . 18 . . Level 2 . | . . . . Level 3 . | . . . . Level 4 . | . . . . Level 5 . | . . . . High Security . | . . . . Max Security . | . . . . Squads Dispatched 2 | . 2 . . Investigation . | . . . . Extermination . | . . . . Reinforcement 2 | . 2 . . Assault . | . . . . Garrison . | . . . . Intercept . | . . . . Searches Triggered . | . . . . Construction Impeded . | . . . . Haulers Reinforced . | . . . . Active Scanning Responses . | . . . . Cargo Convoy Interrupts . | . . . . Stealth | -11 -10 -10 -10 --------- Run | Jun Mat Min Sub Distress Signals 2 | . 2 . . Communications Jammed . | . . . . Distress Signals . | . . . . Times Spotted 50 | . 15 19 16 Peak Tracking Total 11 | . 6 11 3 Tactical Retreats 2 | . 1 1 . Traps | -11 -10 -10 -10 ------- Run | Jun Mat Min Sub Traps Triggered . | . . . . Indirectly . | . . . . Trap Hack Attempts . | . . . . Triggered . | . . . . Disarmed . | . . . . Reprogrammed . | . . . . Reused . | . . . . Traps Extracted . | . . . . Installed . | . . . . Triggered . | . . . . Most Traps Carried 1 | . . . 1 Machines | -11 -10 -10 -10 ---------- Run | Jun Mat Min Sub Machines Disabled 1 | . 1 . . Max in Single Turn 1 | . 1 . . Machines Repaired . | . . . . Machines Sabotaged . | . . . . Overloaded Fab Kills . | . . . . Hacking | -11 -10 -10 -10 --------- Run | Jun Mat Min Sub Machines Accessed 1 | . 1 . . Terminals 1 | . 1 . . Fabricators . | . . . . Repair Stations . | . . . . Recycling Units . | . . . . Scanalyzers . | . . . . Garrison Access . | . . . . Total Hacks 1 | . 1 . . Successful 1 | . 1 . . Failed . | . . . . Catastrophic . | . . . . Database Lockouts . | . . . . Manual 1 | . 1 . . Terminals 1 | . 1 . . Fabricators . | . . . . Repair Stations . | . . . . Recycling Units . | . . . . Scanalyzers . | . . . . Garrison Access . | . . . . Terminal Hacks 1 | . 1 . . Zone Layout 1 | . 1 . . Fabricator Hacks . | . . . . Repair Station Hacks . | . . . . Recycling Unit Hacks . | . . . . Scanalyzer . | . . . . Garrison Access Hacks . | . . . . Unauthorized Hacks . | . . . . Terminals . | . . . . Fabricators . | . . . . Repair Stations . | . . . . Recycling Units . | . . . . Scanalyzers . | . . . . Garrison Access . | . . . . Data Cores Recovered . | . . . . Used . | . . . . Hacking Detections 1 | . 1 . . Full Trace Events . | . . . . Feedback Events . | . . . . Feedback Blocked . | . . . . Robot Schematics Acquired . | . . . . Robots Built . | . . . . Authchips . | . . . . Time . | . . . . Total Robot Build Rating . | . . . . Part Schematics Acquired . | . . . . Parts Built . | . . . . Authchips . | . . . . Time . | . . . . Total Part Build Rating . | . . . . Parts Repaired . | . . . . Time . | . . . . Parts Recycled . | . . . . Recycled Matter . | . . . . Retrieved Matter . | . . . . Retrieved Components . | . . . . Parts Scanalyzed . | . . . . Part Schematics Acquired . | . . . . Parts Damaged . | . . . . Bothacking | -11 -10 -10 -10 ------------ Run | Jun Mat Min Sub Used RIF Installer . | . . . . Robots Hacked . | . . . . Non-combat . | . . . . Combat . | . . . . Robot Hacks Applied . | . . . . Relay Couplers Released . | . . . . Fabnet Peak Effective % . | . . . . Robots Rewired . | . . . . Allies Hacked . | . . . . Hacks Repelled . | . . . . Allies | -11 -10 -10 -10 -------- Run | Jun Mat Min Sub Total Allies . | . . . . Largest Group . | . . . . Highest-Rated Group . | . . . . Highest-Rated Ally . | . . . . Total Orders . | . . . . Ally Attacks . | . . . . Total Damage . | . . . . Kills . | . . . . Allies Corrupted . | . . . . Allies Melted . | . . . . Intel | -11 -10 -10 -10 ------- Run | Jun Mat Min Sub Robot Analysis Total . | . . . . Derelict Logs Recovered 4 | . . 2 2 Drone Launches . | . . . . Drone Recoveries . | . . . . Exploration | -11 -10 -10 -10 ------------- Run | Jun Mat Min Sub Turns Passed 3548 | . 943 728 1877 Spaces Moved 1666 | 1 321 371 973 Core . | . . . . Treads 878 | . . . 878 Legs 666 | 1 321 344 . Wheels 122 | . . 27 95 Hover . | . . . . Flight . | . . . . Fastest Speed 95 | 120 120 95 95 Average Speed 161 | 120 152 183 156 Slowest Speed 190 | 120 190 190 160 Overloaded Moves . | . . . . Propulsion Burnouts . | . . . . Robots Hopped . | . . . . Cave-ins Triggered . | . . . . Exploration Rate (%) 46 | 2 66 57 59 Regions Visited 3 Branch Regions 2 Pre-discovered Areas 1 | . . . 1 Known Exits Taken . | . . . . Unknown Exits Taken 3 | 1 1 1 . Scrap Searched 9 | . . 1 8 Spaces Dug 5 | . . . 5 Terrain Destroyed 28 | . . 20 8 Melee . | . . . . Projectile 8 | . . . 8 AOE 20 | . . 20 . Terrain Rammed . | . . . . Walls Destroyed . | . . . . Machines Disabled . | . . . . Actions | -11 -10 -10 -10 --------- Run | Jun Mat Min Sub Total 2224 | . 683 393 1148 Wait 323 | . 299 1 23 Move 1663 | . 320 370 973 Hop . | . . . . Pick Up 12 | . 4 . 8 Fast Attach 7 | . 2 . 5 Attach 8 | . . 3 5 Detach 4 | . . . 4 Swap 18 | . 4 2 12 Drop 17 | . 7 . 10 Fire 146 | . 46 9 91 Melee 2 | . . . 2 Ram 1 | . . 1 . Kick 6 | . 1 5 . Crush 2 | . . 2 . Escape Stasis . | . . . . Rewire . | . . . . Trap . | . . . . Miscellaneous 15 | . . . 15 Route ------- -11/Junkyard -10/Materials (discovered 3 exits: [*Mat] / [*Min x2]) -10/Mines (discovered 3 exits: [*Mat x2] / [*Sub]) -10/Subcaves (discovered 2 exits: [*Mat x2]) History --------- Turn | Location | Event 1 | -11/Junkyard | Discovered new exit (range 0) 1 | -11/Junkyard | Entered Materials 217 | -10/Materials | Discovered new exit (range 14) 301 | -10/Materials | Discovered new exit (range 4) 304 | -10/Materials | Build established: Mutant 777 | -10/Materials | Discovered new exit (range 10) 944 | -10/Materials | Entered Mines 971 | -10/Mines | Learned Materials stockpile data 1018 | -10/Mines | Met a Derelict bent on vengeance 1070 | -10/Mines | Learned 2 Materials zone layouts 1140 | -10/Mines | Discovered new exit (range 9) 1256 | -10/Mines | Discovered new exit (range 9) 1459 | -10/Mines | Discovered new exit (range 5) 1599 | -10/Mines | Assembled infested the area 1639 | -10/Mines | Core integrity fell below 50% 1672 | -10/Mines | Entered Subcaves 1679 | -10/Subcaves | Lost 5 parts (2n3w) 1731 | -10/Subcaves | Learned 4 Materials zone layouts 1748 | -10/Subcaves | Shifting Twisted Machinery released Piercing Trap 1775 | -10/Subcaves | Discovered new exit (range 7) 1782 | -10/Subcaves | Shifting Twisted Machinery released Hvy. Battle Rifle 2208 | -10/Subcaves | A swath of the cavern ceiling suddenly collapsed 2305 | -10/Subcaves | A swath of the cavern ceiling suddenly collapsed 2842 | -10/Subcaves | Discovered new exit (range 4) 2846 | -10/Subcaves | A Subdweller sparked back to life 2846 | -10/Subcaves | A Subdweller sparked back to life 2883 | -10/Subcaves | Found Prototype Protection 3027 | -10/Subcaves | Shifting Twisted Machinery released Mak. Sword 3205 | -10/Subcaves | Disturbed a concealed Subdweller 3273 | -10/Subcaves | Core integrity fell below 20% 3382 | -10/Subcaves | Learned location of Zion (-6) 3549 | -10/Subcaves | Destroyed by 9U-NJN(R) with Subdweller Laser Last Messages --------------- 03308_ Scrap Shield Fragment affixed to Scrap Shield (+47). 03311_ Acquired 50 matter. 03316_ Scrap Shield Fragment affixed to Scrap Shield (+30). 03382_ Acquired derelict log, extracted data. World map updated: -6/Zion. 03405_ 8J-OCP(u) builds Twisted Machinery. 03419_ 8J-OCP(u) cries out in pain. 03419_ 8J-OCP(u) destroyed. 03436_ 62-MPW(R): "WEHOME!" 03442_ 62-MPW(R) destroyed. 03447_ Acquired 27 matter. 03458_ Acquired 38 matter. 03488_ Searching scrap... 03488_ Found Sub. Machine Gun. 03488_ Found Sub. Beam Cannon. 03488_ Found 23 Matter. 03489_ Acquired 5 matter. 03491_ Dropped Sub. Laser. 03492_ Acquired Sub. Beam Cannon. 03538_ 9U-NJN(R) suffers critical hit (Destroy). Map ----- +----------------------------------------------------+ | ######???# #?????????????????????????????????? | | ###????????#### #????????????????????????????????? | | ???????????????##????????????????????????????????? | | ?????????????????????????????????????????????????? | | ?????????????????????????????????????????????????? | | ?????????????????????????????????????????????????? | | ?????????????????????????????????????????????????? | | ?????????????????????????????????????????????????? | | ?????????????????????????????????????????????????? | | ?????????????????????????????????????????????????? | | ?????????????????????????????????????????????????? | | ?????????????????????????????????????????????????? | | ?????????????????????????????????????????????????? | | ?????????????????????????????????????????????????? | | ?????????????????????????????????????????????????? | | ???????????????????######????????????????????????? | | ??????????????????## %[ #????????????????????????? | | ?????????????????##"[ ##???????????????????????? | | ??????####???????#; #### #####???????????????????? | | ?????## ####???##" #???????????????????? | | ????##""""""##??#" ####????????????????? | | ????# "" """####" # ## ## """????????? | | ????## ## ""# #" [ "" ????????? | | ?????# #?#" "" " ????????? | | ?????# #?# " ## RR;# # ####???????????? | | ????## ##### ## ###### @######?#???????????????? | | ????# ###### #????# #?????????????????????? | | ????# ### ##" ##???## ????????????????????? | | ????# ## " #????# ??????????????????? | | ????##" ####"" #????## ?????????????????? | | ????#" "####""" "#?????### ????????????????? | | ????## ### ##????????### # ???????????????? | | ????## [ ##????????????###?#??????????????? | | ##### = !% #????????????????????????????????? | | ## ## #* #???????????????????????????????? | | #?### ###### #?????????????????????????????? | | ####### # #### ##?????????????????????????????? | | # ## #??????????????????????????????? | | #?????????????????????????????? | | % ##### #?????????????????????????????? | | ## # #####????## ?????????????????????????????? | | ##### ##??????????# ????????????????????????????? | | ##???###???????????? ???????????????????????????? | | #???????????????????? ??????????????????????????? | | ?????????????????????? ?????????????????????????? | | ?????????????????????? ?????????????????????????? | | ?????????????????????????????????????????????????? | | ?????????????????????????????????????????????????? | | ?????????????????????????????????????????????????? | | ?????????????????????????????????????????????????? | +----------------------------------------------------+ Best States ------------- Heat Dissipation 39 Energy Generation 14 Energy Capacity 280 Matter Stores 300 Matter Capacity 300 Sight Range 16 Terrain Scan Density 10 Armor Coverage 800 Evasion (%) 55 Recoil Reduction 2 Item Schematics ----------------- None Robot Schematics ------------------ None Fabricated ------------ Nothing Alien Tech Used ----------------- None Achievements -------------- None Challenges ------------ None Game ------ Seed SupersonicHugeCoupler Manual? 0 Play Time 00:17:52 Cumulative 354.8 hours Start 2023.09.24 @ 17:58:35 End 2023.09.24 @ 18:14:28 Sessions 1 Manual Loads 0 Difficulty Rogue Special Mode None Game No. 374 Rogue 374 Adventurer 0 Explorer 0 Win Type - Total 29 Types 16/3/4/1/2/0/3/0/0 Lore% 86 Gallery% 86 Achievement% 82 Wizard Run 0 Options --------- ASCII 0 Keyboard 0 Movement Arrows Keybinds 0 Fullscreen 2 Font 24/Smallcaps Map View 76x50 Tactical HUD 1 Map Filters NONE Filters NONE Steam 1 RUN: 89bdd4b8-c95b-4392-92e1-5c8181c3506e